Cogmind - Beta 12 X2 @@@ ROGUE MODE // 2022.09.14 @ 13:58:14 Player: btmk16 Result: Destroyed by D-53 Grenadier with Mini Grenade Launcher Performance ------------- Evolutions (1) 500 Regions Visited (4) 800 Robots Destroyed (54) 270 Value Destroyed (1243) 1243 Prototype IDs (10) 200 Alien Tech Used (0) 0 Bonus (91) 91 TOTAL SCORE: 3104 Bonus ------- High Alert Combat Kills 70 Follower Combat Kills 21 Cogmind --------- Core Integrity 0/400 Matter 219/300 Energy 77/100 System Corruption 2% Temperature Cool (0) Movement Treading (170) Location -9/Mines Parts ------- > --- POWER (1) -------- (None) > --- PROPULSION (3) --- Armored Treads Armored Treads > --- UTILITY (3) ------ Large Storage Unit > --- WEAPON (2) ------- Heavy Mace Heavy Mace > --- INVENTORY (15) --- Light Nuclear Core Improved Heat Sink Improved Terrain Scanner Hardened Light Armor Plating Shield Generator Improved Assault Rifle Improved Assault Rifle Improved Assault Rifle Grenade Launcher Grenade Launcher Rocket Launcher Peak State ------------ > --- POWER ------------ Heavy Ion Engine > --- PROPULSION ------- Improved Treads Armored Treads Armored Treads > --- UTILITY ---------- Improved Heat Sink Large Storage Unit Light Armor Plating > --- WEAPON ----------- Heavy Mace Heavy Mace > --- INVENTORY -------- Light Nuclear Core Armored Treads Armored Treads Improved Heat Sink Improved Terrain Scanner Hardened Light Armor Plating Shield Generator Improved Assault Rifle Improved Assault Rifle Improved Assault Rifle Grenade Launcher Grenade Launcher Rocket Launcher [Rating: 25] Favorites ----------- Power Ion Engine Engine Ion Engine Propulsion Light Treads Treads Light Treads Wheel Wheel Utility Large Storage Unit Device Improved Heat Sink Storage Large Storage Unit Protection Light Armor Plating Weapon Heavy Assault Rifle Ballistic Gun Heavy Assault Rifle Launcher Grenade Launcher Impact Weapon Heavy Mace Build | -11 -10 -10 -9 -9 ------- Run | Scr Mat Min Mat Min Slots Evolved 2 | . . . 2 . Power . | . . . . . Propulsion 1 | . . . 1 . Utility 1 | . . . 1 . Weapon . | . . . . . Parts Attached 44 | 7 4 4 23 6 Power 5 | 1 . 2 2 . Engine 5 | 1 . 2 2 . Core . | . . . . . Reactor . | . . . . . Propulsion 16 | 2 . 2 8 4 Treads 14 | 2 . 1 7 4 Leg . | . . . . . Wheel 2 | . . 1 1 . Hover . | . . . . . Flight . | . . . . . Utility 10 | 2 2 . 6 . Device 4 | 1 . . 3 . Storage 3 | 1 2 . . . Processor . | . . . . . Hackware . | . . . . . Protection 3 | . . . 3 . Artifact . | . . . . . Weapon 13 | 2 2 . 7 2 Energy Gun . | . . . . . Energy Cannon . | . . . . . Ballistic Gun 7 | 2 2 . 3 . Ballistic Cannon . | . . . . . Launcher 1 | . . . 1 . Special Weapon . | . . . . . Impact Weapon 5 | . . . 3 2 Slashing Weapon . | . . . . . Piercing Weapon . | . . . . . Special Melee Weapon . | . . . . . Unidentified Prototypes . | . . . . . Parts Lost 12 | . 1 1 2 8 Power 1 | . . . . 1 Propulsion 6 | . . 1 . 5 Utility 5 | . 1 . 2 2 Weapon . | . . . . . Highest Loss Streak 8 | . 1 1 1 8 To Critical Strikes . | . . . . . Average Slot Usage (%) 97 | . 94 99 98 87 Engine 12 | . 14 14 11 7 Treads 29 | . 28 26 31 31 Device 6 | . 3 . 10 7 Storage 16 | . 19 28 11 11 Protection 6 | . . . 10 7 Ballistic Gun 15 | . 28 28 8 . Impact Weapon 8 | . . . 13 17 Naked Turns . | . . . . . Heaviest Build 38 | 13 34 34 38 38 Greatest Support 63 | 40 40 40 63 63 Greatest Overweight (x) 3 | . . 3 3 . Average Overweight (x) . | . . . . . Largest Inventory Capacity 15 | 8 15 15 15 15 Average Capacity 14 | 7 11 15 15 15 Most Carried 15 | 8 11 15 15 15 Average Carried 13 | 4 8 13 14 14 Final Capacity 15 | 8 15 15 15 15 Final Carried 15 | 8 11 15 15 11 Class Distribution -------------------- 92% | Mutant 7% | Scavenger-Mutant Dominant Class ---------------- Mutant | -10/Materials Mutant | -10/Mines Mutant | -9/Materials Mutant | -9/Mines Resources | -11 -10 -10 -9 -9 ----------- Run | Scr Mat Min Mat Min Matter Collected 1240 | 290 51 335 564 . Remotely . | . . . . . Salvage Created 1894 | 100 93 228 1472 1 Parts 93 | 5 2 11 75 . Haulers Intercepted 5 | . . . 5 . Recyclers Shooed 3 | 1 . 1 1 . Parts Field Recycled . | . . . . . Retrieved Matter . | . . . . . Parts Self-Destructed . | . . . . . Prevented . | . . . . . Kills | -11 -10 -10 -9 -9 ------- Run | Scr Mat Min Mat Min Combat Hostiles Destroyed 41 | . 2 4 32 3 Melee 9 | . . . 8 1 Guns 24 | . 2 4 18 . AOE 2 | . . . . 2 Classes Destroyed 10 | 2 1 1 5 1 Worker 3 | . . 2 1 . Builder 1 | . . . 1 . Tunneler 1 | 1 . . . . Hauler 5 | . . . 5 . Recycler 2 | 1 . . 1 . Watcher 4 | . . . 4 . Swarmer 13 | . . . 13 . Grunt 15 | . 2 4 9 . Sentry 10 | . . . 10 . Assembled 3 | . . . . 3 Best Kill Streak 5 | 1 2 2 5 3 Combat Bots Only 4 | . 2 2 4 3 Max Kills in Single Turn 1 | 1 1 1 1 1 Gunslinging . | . . . . . Exploded 1 | . . . . 1 Melee 1 | . . . 1 1 Uniques/NPCs Destroyed . | . . . . . Combat | -11 -10 -10 -9 -9 -------- Run | Scr Mat Min Mat Min Damage Taken 3062 | . 282 255 1061 1464 Core 514 | . 55 56 191 212 Absorbed by Shields . | . . . . . Core Remaining (%) 77 | 100 . 55 . . Volleys Fired 106 | 10 20 20 53 3 Largest 2 | 2 2 2 2 1 Hottest 46 | 40 46 46 46 30 Shots Fired 209 | 20 40 40 106 3 Gun 206 | 20 40 40 106 . Cannon . | . . . . . Launcher 3 | . . . . 3 Special . | . . . . . Kinetic 206 | 20 40 40 106 . Thermal . | . . . . . Explosive 3 | . . . . 3 Electromagnetic . | . . . . . Robot Hit Streak 25 | 9 7 7 25 11 Robot Miss Streak 3 | 1 2 3 3 1 Penetration Max . | . . . . . Secondary Targets 2 | . . 1 1 . Max Gunslinging Chain 1 | . . 1 1 . Shots Hit Robots 197 | 16 28 28 122 3 Core Hits 64 | 5 7 9 37 6 Critical Kills 1 | . . . 1 . Critical Parts Destroyed 7 | . . . 7 . Critical Strikes 8 | . . . 8 . Smash 8 | . . . 8 . Melee Attacks 60 | . . . 59 1 Impact 60 | . . . 59 1 Slashing . | . . . . . Piercing . | . . . . . Sneak Attacks 9 | . . . 9 . Combat Hostiles 2 | . . . 2 . Follow-up Attacks 7 | . . . 7 . Damage Inflicted 4318 | 124 245 431 3320 198 Guns 1977 | 124 245 431 1177 . Cannons . | . . . . . Explosions 147 | . . . . 147 Melee 2194 | . . . 2143 51 Ramming . | . . . . . Kinetic 1977 | 124 245 431 1177 . Thermal . | . . . . . Explosive 147 | . . . . 147 Electromagnetic . | . . . . . Impact 2194 | . . . 2143 51 Slashing . | . . . . . Piercing . | . . . . . Highest Corruption 2 | . . . 2 2 Average Corruption 2 | . . . 2 2 Corruption Purged . | . . . . . Corruption Blocked . | . . . . . Effects 14 | . . . 10 4 Message Errors 4 | . . . 4 . Matter Fused 3 | . . . 1 2 Heat Flow Errors 1 | . . . . 1 Energy Discharges 1 | . . . 1 . Parts Rejected 2 | . . . 1 1 Data Loss (minor) 2 | . . . 2 . Alerts 1 | . . . 1 . Overload Shots . | . . . . . Overflow Damage 612 | . . . 607 5 Projectiles . | . . . . . Explosions 5 | . . . . 5 Melee 607 | . . . 607 . Knockbacks 5 | . . . 5 . Impact 5 | . . . 5 . Kinetic . | . . . . . Secondary . | . . . . . Self-Inflicted Damage 1 | . . . . 1 Shots 1 | . . . . 1 Rammed . | . . . . . Targets Rammed . | . . . . . Kicked . | . . . . . Crushed . | . . . . . Highest Temperature 166 | . 16 34 17 166 Average Temperature 13 | . 9 15 5 76 Received Heat Transfer 711 | . 159 186 306 60 Siege Activations . | . . . . . Robots Corrupted . | . . . . . Combat Hostiles . | . . . . . Parts Fried 24 | . . . 24 . Impact Corruptions 25 | . . . 25 . Robots Melted . | . . . . . Combat Hostiles . | . . . . . Parts Melted . | . . . . . Heat Transferred . | . . . . . Parts Sabotaged . | . . . . . Parts Stolen . | . . . . . Parts Stripped . | . . . . . Power Chain Reactions . | . . . . . Missiles Intercepted . | . . . . . Alert | -11 -10 -10 -9 -9 ------- Run | Scr Mat Min Mat Min Peak Influence 604 | 10 85 120 604 289 Initial 235 | . 6 15 . 235 Average 229 | 2 36 48 356 251 Maximum Alert Level 2 | . . . 2 1 Low Security (%) 52 | 100 100 100 23 . Level 1 24 | . . . 37 100 Level 2 22 | . . . 39 . Level 3 . | . . . . . Level 4 . | . . . . . Level 5 . | . . . . . High Security . | . . . . . Max Security . | . . . . . Squads Dispatched 4 | . 1 . 3 . Investigation 2 | . 1 . 1 . Extermination . | . . . . . Reinforcement 2 | . . . 2 . Assault . | . . . . . Garrison . | . . . . . Intercept . | . . . . . Searches Triggered . | . . . . . Construction Impeded . | . . . . . Haulers Reinforced . | . . . . . Active Scanning Responses . | . . . . . Cargo Convoy Interrupts . | . . . . . Stealth | -11 -10 -10 -9 -9 --------- Run | Scr Mat Min Mat Min Distress Signals 6 | . 1 . 5 . Communications Jammed . | . . . . . Distress Signals . | . . . . . Times Spotted 78 | . 8 7 47 16 Peak Tracking Total 6 | . 6 3 5 6 Tactical Retreats 7 | . 1 . 5 1 Traps | -11 -10 -10 -9 -9 ------- Run | Scr Mat Min Mat Min Traps Triggered 1 | . . . 1 . Indirectly . | . . . . . Trap Hack Attempts . | . . . . . Triggered . | . . . . . Disarmed . | . . . . . Reprogrammed . | . . . . . Reused . | . . . . . Traps Extracted . | . . . . . Installed . | . . . . . Triggered . | . . . . . Machines | -11 -10 -10 -9 -9 ---------- Run | Scr Mat Min Mat Min Machines Disabled . | . . . . . Max in Single Turn . | . . . . . Machines Sabotaged . | . . . . . Overloaded Fab Kills . | . . . . . Hacking | -11 -10 -10 -9 -9 --------- Run | Scr Mat Min Mat Min Machines Accessed 12 | . 4 . 8 . Terminals 12 | . 4 . 8 . Fabricators . | . . . . . Repair Stations . | . . . . . Recycling Units . | . . . . . Scanalyzers . | . . . . . Garrison Access . | . . . . . Total Hacks 29 | . 9 . 20 . Successful 14 | . 4 . 10 . Failed 15 | . 5 . 10 . Catastrophic 2 | . . . 2 . Database Lockouts . | . . . . . Manual 8 | . 3 . 5 . Terminals 29 | . 9 . 20 . Fabricators . | . . . . . Repair Stations . | . . . . . Recycling Units . | . . . . . Scanalyzers . | . . . . . Garrison Access . | . . . . . Terminal Hacks 14 | . 4 . 10 . Robot Analysis 3 | . 1 . 2 . Prototype ID Bank 6 | . 2 . 4 . Branch Access Points 1 | . . . 1 . Alert Level 1 | . . . 1 . Locate Traps 1 | . . . 1 . Assault Status 1 | . . . 1 . Zone Layout 1 | . 1 . . . Fabricator Hacks . | . . . . . Repair Station Hacks . | . . . . . Recycling Unit Hacks . | . . . . . Scanalyzer . | . . . . . Garrison Access Hacks . | . . . . . Unauthorized Hacks . | . . . . . Terminals . | . . . . . Fabricators . | . . . . . Repair Stations . | . . . . . Recycling Units . | . . . . . Scanalyzers . | . . . . . Garrison Access . | . . . . . Data Cores Recovered . | . . . . . Used . | . . . . . Hacking Detections 8 | . 3 . 5 . Full Trace Events 3 | . 1 . 2 . Feedback Events . | . . . . . Feedback Blocked . | . . . . . Robot Schematics Acquired . | . . . . . Robots Built . | . . . . . Authchips . | . . . . . Time . | . . . . . Total Robot Build Rating . | . . . . . Part Schematics Acquired . | . . . . . Parts Built . | . . . . . Authchips . | . . . . . Time . | . . . . . Total Part Build Rating . | . . . . . Parts Repaired . | . . . . . Time . | . . . . . Parts Recycled . | . . . . . Recycled Matter . | . . . . . Retrieved Matter . | . . . . . Retrieved Components . | . . . . . Parts Scanalyzed . | . . . . . Part Schematics Acquired . | . . . . . Parts Damaged . | . . . . . Bothacking | -11 -10 -10 -9 -9 ------------ Run | Scr Mat Min Mat Min Used RIF Installer . | . . . . . Robots Hacked . | . . . . . Non-combat . | . . . . . Combat . | . . . . . Robot Hacks Applied . | . . . . . Relay Couplers Released . | . . . . . Fabnet Peak Effective % . | . . . . . Robots Rewired . | . . . . . Allies Hacked . | . . . . . Hacks Repelled . | . . . . . Allies | -11 -10 -10 -9 -9 -------- Run | Scr Mat Min Mat Min Total Allies 1 | . . 1 . . Largest Group 1 | . . 1 . . Highest-Rated Group 31 | . . 31 . . Highest-Rated Ally 31 | . . 31 . . Total Orders . | . . . . . Ally Attacks 5 | . . 5 . . Total Damage 64 | . . 64 . . Kills 3 | . . 3 . . Allies Corrupted . | . . . . . Allies Melted . | . . . . . Intel | -11 -10 -10 -9 -9 ------- Run | Scr Mat Min Mat Min Robot Analysis Total 3 | . 1 . 2 . Derelict Logs Recovered 2 | . . 2 . . Drone Launches . | . . . . . Drone Recoveries . | . . . . . Exploration | -11 -10 -10 -9 -9 ------------- Run | Scr Mat Min Mat Min Turns Passed 4726 | 130 540 1196 2716 144 Spaces Moved 2227 | 57 290 570 1231 79 Core 4 | 4 . . . . Treads 2029 | 53 290 493 1114 79 Legs . | . . . . . Wheels 194 | . . 77 117 . Hover . | . . . . . Flight . | . . . . . Fastest Speed 50 | 50 160 125 125 160 Average Speed 167 | 152 160 189 160 162 Slowest Speed 240 | 160 160 240 240 170 Overloaded Moves . | . . . . . Propulsion Burnouts . | . . . . . Robots Hopped . | . . . . . Cave-ins Triggered . | . . . . . Exploration Rate (%) 55 | 5 49 99 93 33 Regions Visited 4 Branch Regions 2 Pre-discovered Areas . | . . . . . Known Exits Taken 2 | . . 1 1 . Unknown Exits Taken 2 | 1 1 . . . Scrap Searched 1 | . . 1 . . Spaces Dug 3 | . . . 3 . Terrain Destroyed 25 | . . . 3 22 Melee 3 | . . . 3 . Projectile . | . . . . . AOE 22 | . . . . 22 Terrain Rammed . | . . . . . Walls Destroyed . | . . . . . Machines Disabled . | . . . . . Actions | -11 -10 -10 -9 -9 --------- Run | Scr Mat Min Mat Min Total 2947 | 81 336 646 1795 89 Wait 455 | . 12 50 393 . Move 2223 | 56 289 569 1230 79 Hop . | . . . . . Pick Up 32 | 8 5 2 17 . Fast Attach 16 | 7 2 1 5 1 Attach 7 | . . 1 2 4 Detach 2 | . 1 1 . . Swap 21 | . 2 2 16 1 Drop 35 | . 5 . 30 . Fire 106 | 10 20 20 53 3 Melee 50 | . . . 49 1 Ram . | . . . . . Kick . | . . . . . Crush . | . . . . . Escape Stasis . | . . . . . Rewire . | . . . . . Trap . | . . . . . Miscellaneous . | . . . . . Route ------- -11/Scrapyard -10/Materials (discovered 2 exits: *Mat / [*Min]) -10/Mines (discovered 2 exits: *Mat x2) -9/Materials (discovered 4 exits: [*Mat x3] / *Min) -9/Mines History --------- Turn | Location | Event 34 | -11/Scrapyard | Discovered new exit (range 16) 131 | -11/Scrapyard | Entered Materials 303 | -10/Materials | Build established: Mutant 391 | -10/Materials | Discovered new exit (range 16) 631 | -10/Materials | Discovered new exit (range 12) 671 | -10/Materials | Entered Mines 674 | -10/Mines | Received a Mining Laser from a helpful Derelict 687 | -10/Mines | Met a Derelict bent on vengeance 689 | -10/Mines | Identified exit to Materials 907 | -10/Mines | Learned Materials terminal intel 1742 | -10/Mines | Discovered exit to Materials (range 9) 1867 | -10/Mines | Entered Materials 1867 | -9/Materials | Evolved 2 slots: Propulsion x1, Utility x1 1868 | -9/Materials | Loaded intel: 12 terminal locations 2545 | -9/Materials | Identified exit to Mines 2682 | -9/Materials | Discovered new exit (range 10) 2839 | -9/Materials | Build established: Scavenger-Mutant 3163 | -9/Materials | Build established: Mutant 3555 | -9/Materials | Discovered new exit (range 3) 4395 | -9/Materials | Discovered new exit (range 16) 4583 | -9/Materials | Entered Mines 4624 | -9/Mines | Assembled infested the area 4642 | -9/Mines | Core integrity fell below 50% 4675 | -9/Mines | Core integrity fell below 20% 4727 | -9/Mines | Destroyed by D-53 Grenadier with Mini Grenade Launcher Last Messages --------------- 04680_ U-05 Engineer destroyed. 04682_ The unstable cave ceiling collapses. 04687_ as-93700 sneak attacks. 04687_ U-05 Engineer destroyed. 04687_ Hvy. Ion Engine destroyed. 04691_ The unstable cave ceiling collapses. 04691_ as-22191 destroyed. 04694_ The unstable cave ceiling collapses. 04704_ Arm. Treads destroyed. 04705_ as-20608 destroyed. 04706_ System corrupted: Hvy. Mace rejected. 04706_ The unstable cave ceiling collapses. 04706_ Acquired Hvy. Mace. 04707_ as-96986 destroyed. 04709_ as-33376 destroyed. 04710_ The unstable cave ceiling collapses. 04717_ Core Extractor disabled. 04717_ as-04088 destroyed. 04722_ Imp. Treads destroyed. 04722_ Arm. Treads destroyed. Map ----- +----------------------------------------------------+ | ??? # # ##???????????????????? | | # ### #???????????????????? | | ####?####??# #???????????????????? | | ??????????????# ##??????????????????? | | ??????????????## #??????????????????? | | ???????????????## ## #??????????????????? | | ????????????????#$ ## #??????????????????? | | ???????????????## ## # ##??????????????????? | | ???????????????? ## ## #??????????????????? | | ??????????????? # #??????????????????? | | ??????????????### ## #??????????????????? | | ???????????????## #?## ##??????????????????? | | ???????????????# ### # #???????????????????? | | ??????????????## #???????????????????? | | ??????????????# # ## ??????????? | | ?????????????## = ??????????? | | ?????????????# # #### #?????????? | | ?????????????# # #####??????? ??????????? | | ?????????????# #dd # #####?????????????????????? | | ?????????????## % # ##????????????????????? | | ??????????????# ##???????????????????? | | ??????????##### #???????????????????? | | ???? #???????????????????? | | ??? a ##???????????????????? | | ???? ############# #????????????????????? | | ?????????????????# * @ #????????????????????? | | ?????????????????### ##????????????????????? | | ??????????????????# a #?????????????????????? | | ?????????????????# % #?????????????????????? | | ?????????????????# *#?????????????????????? | | ?????????????????# !% ?????????????????????? | | ?????????????????## =%! #????????????????????? | | ??????????????????# ????????????????????? | | ?????????????????? ## [???????????????????? | | ?????????????????=%* ##?##!=%??????????????????? | | ???????????????? a ##????%#???????????????????? | | ??????????????? ##?????$#???????????????????? | | ????????????????# ??????? #???????????????????? | | ?????????????????? #???????? ???????????????????? | | ?????????????????????????????#???????????????????? | | ?????????????????????????????????????????????????? | | ?????????????????????????????????????????????????? | | ?????????????????????????????????????????????????? | | ?????????????????????????????????????????????????? | | ?????????????????????????????????????????????????? | | ?????????????????????????????????????????????????? | | ?????????????????????????????????????????????????? | | ?????????????????????????????????????????????????? | | ?????????????????????????????????????????????????? | | ?????????????????????????????????????????????????? | +----------------------------------------------------+ Best States ------------- Heat Dissipation 42 Energy Generation 14 Energy Capacity 280 Matter Stores 450 Matter Capacity 450 Sight Range 16 Terrain Scan Range 14 Terrain Scan Density 10 Armor Coverage 150 Evasion (%) 40 Recoil Reduction 3 Item Schematics ----------------- None Robot Schematics ------------------ None Fabricated ------------ Nothing Alien Tech Used ----------------- None Achievements -------------- None Challenges ------------ None Game ------ Seed AntigravOpticalMatter Manual? 0 Play Time 00:21:07 Cumulative 504.3 hours Start 2022.09.14 @ 13:31:16 End 2022.09.14 @ 13:58:14 Sessions 1 Manual Loads 0 Difficulty Rogue Special Mode None Game No. 570 Rogue 569 Adventurer 0 Explorer 1 Win Type - Total 18 Types 12/0/3/3/0/0/0/0/0 Lore% 80 Gallery% 90 Achievement% 72 Wizard Run 0 Options --------- ASCII 0 Keyboard 1 Movement Vi Keybinds 0 Fullscreen 1 Font 18/SmallcapsGlow Map View 76x50 Tactical HUD 1 Map Filters NONE Filters NONE Steam 1 RUN: 0c66c30f-6b01-4980-8da6-9522cb7cfaad